Cogmind - Beta 15 @@@ ROGUE MODE // 2025.06.24 @ 19:53:59 Player: 7604 Result: Self-destructed Performance ------------- Evolutions (8) 4000 Regions Visited (18) 3600 Robots Destroyed (267) 1335 Value Destroyed (11936) 11936 Prototype IDs (84) 1680 Alien Tech Used (1) 200 Bonus (6153) 6153 TOTAL SCORE: 28904 Bonus ------- High Alert Combat Kills 2069 Follower Combat Kills 2164 Network Hubs Disabled 200 Met Warlord at Base 500 MAIN.C Attacked Warlord 500 Built Enhanced Grunts 300 A7 Reached Mainframe 300 Met R17 at Cetus 500 Met R17 at Research 2000 Friendly Fire -2380 Cogmind --------- Core Integrity 1407/1450 Matter 265/300 Energy 31/100 System Corruption 0% Temperature Cool (0) Movement Treading (127) Location -2/Research Parts ------- > --- POWER (2) -------- (None) > --- PROPULSION (5) --- Treaded Siege-Antigrav Exoskeleton > --- UTILITY (11) ----- Advanced Heat Sink High-capacity Storage Unit Seismic Detector (fused) > --- WEAPON (5) ------- Advanced Remote Datajack > --- INVENTORY (20) --- Improved Heavy Treads Improved Heavy Treads Myomer Leg Myomer Leg Combat Gravmag System Combat Gravmag System Combat Gravmag System Advanced Cryofiber Web Gravity Neutralizer Advanced Particle Charger Advanced Kinecellerator Makeshift ECM Suite Advanced Remote Shield Tactical Quantum Warhead Improved Plasma Cutter Multitool Vortex Lance (40) Vortex Lance (6) Peak State ------------ > --- POWER ------------ Improved Quantum Reactor Particle-Antimatter Reactor > --- PROPULSION ------- Biometal Medium Treads Improved Heavy Siege Treads Treaded Siege-Antigrav Exoskeleton > --- UTILITY ---------- Armored Scrap Engine Advanced Heat Sink High-capacity Storage Unit Experimental Signal Interpreter Centrium Light Armor Plating Centrium Medium Armor Plating Light Regenerative Plating Advanced Remote Shield > --- WEAPON ----------- Micro-nuke Launcher Hvy. Charged HERF Construct/C Vortex Lance > --- INVENTORY -------- Light Antimatter Reactor Flexi-carbon Leg Advanced Cryofiber Web Advanced Heat Sink Gravity Neutralizer Structural Scanner Seismic Detector Advanced Particle Charger Advanced Kinecellerator Quantum Capacitor Improved Transmission Jammer Makeshift ECM Suite Centrium Medium Armor Plating Plasma Rifle Improved Remote Datajack Improved Plasma Cutter Multitool Vortex Lance [Rating: 159] Favorites ----------- Power Constructs Engine Ion Engine Power Core Enhanced Nuclear Core Reactor Constructs Propulsion Light Treads Treads Light Treads Leg Titanium Leg Hover Unit Improved Antigrav System Flight Unit Improved Q-thruster Utility Seismic Detector Device Seismic Detector Storage Huge Storage Unit Processor Experimental Signal Interpreter Protection Improved Medium Armor Plating Weapon Constructs Energy Gun Particle Gun Energy Cannon Constructs Ballistic Gun Subdweller Machine Gun Ballistic Cannon Heavy Hardcell Cannon Launcher Micro-nuke Launcher Special Weapon Improved Remote Datajack Impact Weapon Shock Maul Piercing Weapon Vortex Lance Special Melee Weapon Improved Datajack Build | -11 -10 -10 -8 -7 -7 -7 -5 -5 -5 -5 -4 -4 -4 -4 -4 -4 -3 -2 ------- Run | Yrd Mat Sub Mat Fac Sto Rec Fac Upp Upp War Pro Fac Ext Cet Arc Hub Res Res Slots Evolved 16 | . . . 4 2 . . 4 . . . . 2 . . . . 2 2 Power 1 | . . . . . . . 1 . . . . . . . . . . . Propulsion 3 | . . . 2 1 . . . . . . . . . . . . . . Utility 9 | . . . 2 1 . . 2 . . . . 1 . . . . 1 2 Weapon 3 | . . . . . . . 1 . . . . 1 . . . . 1 . Parts Attached 184 | 1 8 12 35 21 13 3 9 1 . 6 . 12 10 2 6 5 37 3 Power 13 | . 1 2 3 1 . . . . . . . . 2 . . . 4 . Engine 5 | . 1 1 2 . . . . . . . . . . . . . 1 . Core 5 | . . 1 1 1 . . . . . . . . 2 . . . . . Reactor 3 | . . . . . . . . . . . . . . . . . 3 . Propulsion 33 | . 2 2 11 6 3 1 . . . . . . . . . 1 6 1 Treads 22 | . 2 2 6 6 3 1 . . . . . . . . . . 2 . Leg 5 | . . . 5 . . . . . . . . . . . . . . . Wheel . | . . . . . . . . . . . . . . . . . . . Hover 5 | . . . . . . . . . . . . . . . . 1 4 . Flight 1 | . . . . . . . . . . . . . . . . . . 1 Utility 72 | 1 3 1 7 8 4 2 6 1 . 4 . 7 4 . 6 4 13 1 Device 46 | 1 1 1 4 4 1 1 3 1 . 3 . 6 3 . 6 2 8 1 Storage 6 | . 2 . 1 . . 1 . . . . . 1 . . . . 1 . Processor 4 | . . . . . . . 2 . . 1 . . . . . . 1 . Hackware . | . . . . . . . . . . . . . . . . . . . Protection 16 | . . . 2 4 3 . 1 . . . . . 1 . . 2 3 . Artifact . | . . . . . . . . . . . . . . . . . . . Weapon 66 | . 2 7 14 6 6 . 3 . . 2 . 5 4 2 . . 14 1 Energy Gun 24 | . 2 2 8 1 5 . . . . . . 1 1 1 . . 3 . Energy Cannon 13 | . . 2 1 4 . . 2 . . . . 1 1 . . . 2 . Ballistic Gun 8 | . . 1 . 1 . . . . . . . . . 1 . . 5 . Ballistic Cannon 1 | . . . . . . . . . . . . . . . . . 1 . Launcher 11 | . . 1 4 . . . 1 . . 1 . 1 1 . . . 2 . Special Weapon 5 | . . 1 . . . . . . . 1 . 1 1 . . . . 1 Impact Weapon 1 | . . . . . 1 . . . . . . . . . . . . . Slashing Weapon . | . . . . . . . . . . . . . . . . . . . Piercing Weapon 2 | . . . . . . . . . . . . 1 . . . . 1 . Special Melee Weapon 1 | . . . 1 . . . . . . . . . . . . . . . Unidentified Prototypes 32 | . . . 6 1 5 1 . 1 . 3 . 4 . 2 . . 8 1 Corrupted Parts 1 | . . . . . . . . . . . . . 1 . . . . . System Corruption 1 | . . . . . . . . . . . . . 1 . . . . . Parts Lost 53 | . . 4 4 . 3 . 1 . . . . 3 2 . . 9 26 1 Power 6 | . . 1 . . . . . . . . . . 1 . . 1 3 . Propulsion 13 | . . 2 3 . . . . . . . . . . . . 5 3 . Utility 21 | . . . . . 2 . 1 . . . . 1 1 . . 2 13 1 Weapon 13 | . . 1 1 . 1 . . . . . . 2 . . . 1 7 . Highest Loss Streak 12 | . . 2 4 . 1 . 1 . . . . 2 1 . . 5 12 1 To Critical Strikes . | . . . . . . . . . . . . . . . . . . . Average Backups 20 | 6 14 22 23 24 24 20 18 19 19 19 20 18 18 18 18 18 17 19 Power . | 1 1 . 1 . 1 1 . . . . . . . . . . . . Propulsion 2 | 4 2 3 2 3 3 3 . . . . . . 1 . . . . 4 Utility 8 | . 4 5 7 10 8 9 11 12 11 12 12 10 9 10 10 10 9 7 Weapon 7 | 1 5 10 10 8 9 5 4 4 6 5 7 5 5 6 6 5 3 3 Tool/Special . | . . . . . . . . . . . . . . . . . . . Unused Backups 113 | 6 1 2 6 4 2 22 19 1 1 3 . 5 10 6 1 . 16 8 Power 16 | 1 . . 1 . 1 4 4 . . . . . . 1 . . 4 . Propulsion 41 | 2 . 2 . 2 1 14 1 1 . . . 1 5 . . . 7 5 Utility 18 | 1 . . . 1 . 1 4 . 1 . . 1 2 4 . . 2 1 Weapon 37 | 2 1 . 4 1 . 3 10 . . 3 . 3 3 1 1 . 3 2 Tool/Special 1 | . . . 1 . . . . . . . . . . . . . . . Average Slot Usage (%) 82 | . 99 99 97 99 99 85 61 58 58 58 58 57 58 56 55 57 59 18 Engine 3 | . 14 7 8 4 . . 2 . . . . . . . . . . . Core 4 | . . 6 . 2 7 6 2 5 5 5 5 5 5 5 2 . . . Treads 18 | . 27 27 17 37 37 26 . . . . . . 2 4 5 5 2 . Leg 1 | . . . 17 . . . . . . 1 5 5 . . . . 1 . Device 17 | . 13 14 23 22 15 14 15 16 17 17 17 21 18 21 20 21 20 8 Storage 8 | . 14 14 9 7 7 7 5 5 5 5 5 5 5 5 5 5 4 4 Processor 2 | . . . . . . . 8 11 11 11 11 8 5 5 5 5 3 . Protection 4 | . . . 2 7 13 10 3 . . . . 1 6 5 3 4 6 . Energy Gun 8 | . 16 16 15 . 5 10 2 . . . . . . . . . . . Energy Cannon 4 | . . 5 . 14 8 . 7 11 6 . . 6 6 1 1 4 2 . Ballistic Gun 1 | . 11 4 . . . . . . . . . . . . . . . . Special Weapon 1 | . . 2 1 . . . . . . 4 5 1 2 4 5 2 . . Peak Build Rating 159 | 7 11 15 30 51 59 63 89 93 96 116 112 137 135 138 143 145 159 60 Average Rating 58 | 6 8 13 24 42 51 55 75 89 95 99 112 124 130 133 139 134 117 49 On Entrance 74 | 6 7 11 13 27 49 53 56 89 93 96 116 112 127 130 138 143 95 45 Naked Turns . | . . . . . . . . . . . . . . . . . . . Heaviest Build 126 | 12 92 100 105 117 126 116 83 75 75 78 69 89 102 74 76 83 118 48 Greatest Support 281 | 20 40 40 89 135 134 122 158 158 158 190 190 190 224 182 281 281 133 72 Greatest Overweight (x) 9 | . 2 2 9 1 1 3 . . . . . . . . . 2 7 . Average Overweight (x) . | . 1 2 1 . . . . . . . . . . . . . . . Largest Inventory Capacity 25 | 8 25 25 25 25 25 25 20 20 20 20 20 20 20 20 20 20 20 20 Average Capacity 22 | 8 22 25 25 25 25 24 20 20 20 20 20 20 20 20 20 20 20 20 Most Carried 25 | 7 23 25 25 25 25 25 20 20 20 20 20 20 20 20 20 20 20 20 Average Carried 20 | 6 14 22 23 24 24 21 19 19 19 19 20 19 19 19 19 19 17 19 Final Capacity 25 | 8 25 25 25 25 25 20 20 20 20 20 20 20 20 20 20 20 20 20 Final Carried 25 | 7 21 25 25 25 25 18 20 20 20 20 20 20 20 20 20 19 18 20 Scrap Engine Consumption 212 | . . . . . . 39 26 6 3 5 . 16 25 12 11 7 59 3 Constructs Created 4 | . . . . . . 3 . . . . . . . . . . 1 . Constructs Modified 92 | . . . . . . 16 13 3 1 2 . 5 12 5 6 3 25 1 Class Distribution -------------------- 57% | Mutant 21% | Construct 5% | Commander-Construct 3% | Scavenger-Mutant 3% | Tank Dominant Class ---------------- Mutant | -10/Materials Mutant | -10/Subcaves Mutant | -8/Materials Mutant | -7/Factory Mutant | -7/Storage Mutant | -7/Recycling Construct | -5/Factory Construct | -5/Upper Caves Construct | -5/Upper Caves Construct | -5/Warlord Construct | -4/Proximity Caves Construct | -4/Factory Construct | -4/Extension Commander-Construct | -4/Cetus Commander-Construct | -4/Archives Construct | -4/Hub_04(d) Tank | -3/Research Mutant | -2/Research Resources | -11 -10 -10 -8 -7 -7 -7 -5 -5 -5 -5 -4 -4 -4 -4 -4 -4 -3 -2 ----------- Run | Yrd Mat Sub Mat Fac Sto Rec Fac Upp Upp War Pro Fac Ext Cet Arc Hub Res Res Matter Collected 6367 | 246 297 366 574 400 453 50 331 73 . . 144 461 679 149 446 195 1503 . Remotely . | . . . . . . . . . . . . . . . . . . . Salvage Created 12515 | 107 710 362 966 482 1409 573 1241 75 . . 38 937 1770 345 444 1509 1547 . Parts 615 | 7 49 29 59 20 76 14 65 1 . . 3 42 82 12 30 63 63 . Haulers Intercepted 12 | . 2 . 3 . 3 . 2 . . . . 2 . . . . . . Recyclers Shooed 7 | . . . 2 1 . . 1 . . . . 2 . . . 1 . . Parts Field Recycled . | . . . . . . . . . . . . . . . . . . . Retrieved Matter . | . . . . . . . . . . . . . . . . . . . Parts Self-Destructed 21 | . . 18 . . . . . . . . 3 . . . . . . . Prevented 2 | . . . . . . . . . . . 2 . . . . . . . Kills | -11 -10 -10 -8 -7 -7 -7 -5 -5 -5 -5 -4 -4 -4 -4 -4 -4 -3 -2 ------- Run | Yrd Mat Sub Mat Fac Sto Rec Fac Upp Upp War Pro Fac Ext Cet Arc Hub Res Res Combat Hostiles Destroyed 191 | . 16 9 25 8 20 5 17 . . . . 10 20 4 1 18 38 . Melee 4 | . . . . . . . . . . . . . . . . . 4 . Guns 50 | . 16 4 19 1 3 5 2 . . . . . . . . . . . Cannons 83 | . . 3 . 7 16 . 7 . . . . 7 12 4 1 12 14 . AOE 47 | . . 2 5 . . . 6 . . . . 3 6 . . 5 20 . Classes Destroyed 24 | 2 6 3 3 2 . 1 . . . . 1 1 2 . . . 3 . Worker 11 | . 1 . 2 . 2 . 4 . . . . . . . . 1 1 . Builder 10 | . . . 2 1 . . 3 . . . . . 1 . . 2 1 . Tunneler 5 | 2 2 . . . . . 1 . . . . . . . . . . . Hauler 12 | . 2 . 3 . 3 . 2 . . . . 2 . . . . . . Recycler 10 | 1 . . 2 . 1 2 . . . . . 2 1 . . 1 . . Minesweeper 1 | . . . . . . . . . . . 1 . . . . . . . Mechanic 1 | . . . . . . . . . . . . . . . . . 1 . Operator 9 | . 1 . . . . . . . . . . . 2 . 6 . . . Watcher 12 | . 2 . 2 1 1 . 3 . . . . 1 . 1 . 1 . . Swarmer 40 | . 6 3 9 . . . 4 . . . . . 5 . . . 13 . Cutter 3 | . . . . . . . . . . . . 3 . . . . . . Grunt 61 | . 10 1 12 2 6 . 4 . . . . . 6 . . 11 9 . Brawler 4 | . . . 1 . . 1 . . . . . . . . . 1 1 . Duelist 3 | . . . 1 . . . . . . . . . . . . 2 . . Protector 1 | . . . . . . . . . . . . . 1 . . . . . Sentry 26 | . . 1 2 2 10 1 2 . . . . . 5 . 1 2 . . Demolisher 4 | . . . . . . 1 . . . . . . . . . . 3 . Hunter 5 | . . . . 2 2 . 1 . . . . . . . . . . . Programmer 22 | . . . . 2 2 . 6 . . . . 7 1 . . 2 2 . Behemoth 1 | . . . . . . . . . . . . . 1 . . . . . Cetus Guard 4 | . . . . . . . . . . . . . . 4 . . . . Enhanced Grunt 1 | . . . . . . . . . . . . . . . 1 . . . Striker 9 | . . . . . . . . . . . . . . . . . 9 . Executioner 1 | . . . . . . . . . . . . . . . . . 1 . Artisan 1 | . . 1 . . . . . . . . . . . . . . . . Subdweller 6 | . . 4 . . . 2 . . . . . . . . . . . . Thug 2 | . . . . . . . . . . . . . 2 . . . . . Savage 3 | . . . . . . . . 1 . . . . 2 . . . . . Best Kill Streak 13 | 2 7 2 5 2 5 1 11 . . . 1 3 7 3 1 13 8 . Combat Bots Only 9 | . 6 2 4 2 5 1 6 . . . . 3 5 2 1 9 8 . Max Kills in Single Turn 5 | 1 2 2 3 2 1 1 5 1 . . 1 2 4 1 1 5 4 . Gunslinging 1 | . 1 . . . . . . . . . . . . . . . . . Exploded 4 | . . 2 2 . . . 3 . . . . 2 3 . . 2 4 . Melee 1 | . . . . . . . . . . . . . . . . . 1 . Uniques/NPCs Destroyed . | . . . . . . . . . . . . . . . . . . . Combat | -11 -10 -10 -8 -7 -7 -7 -5 -5 -5 -5 -4 -4 -4 -4 -4 -4 -3 -2 -------- Run | Yrd Mat Sub Mat Fac Sto Rec Fac Upp Upp War Pro Fac Ext Cet Arc Hub Res Res Hostile Shots Fired 1704 | . 65 35 103 92 338 6 129 . 4 . . 131 116 32 6 210 431 6 Missed 573 | . 22 10 24 38 126 1 48 . 2 . . 54 33 17 1 53 142 2 Hits 1131 | . 43 25 79 54 212 5 81 . 2 . . 77 83 15 5 157 289 4 Melee 64 | . . . 4 . . . . . . . . 2 . . . 3 55 . Projectile 1067 | . 43 25 75 54 212 5 81 . 2 . . 75 83 15 5 154 234 4 AOE 23 | . . 3 . . . . 2 . . . . 3 . . . . 15 . Critical Strikes 50 | . . . 7 1 1 . 5 . . . . 9 4 4 . 7 12 . Part Disruptions 1 | . . . . . 1 . . . . . . . . . . . . . Damage Taken 24146 | . 465 663 1251 588 1897 28 1978 44 47 . . 1887 1792 288 125 3586 9410 97 Core 2436 | . 93 109 197 36 115 . 127 . . . . 260 100 8 . 133 1215 43 Absorbed by Shields 638 | . . . . . . . . . . . . . 178 145 . . 315 . Reduced by Siege Mode 163 | . . . . . . . . . . . . . . . . 103 60 . Ignored by Resistances 150 | . . . . 32 99 . 19 . . . . . . . . . . . Regen/Repaired (Parts) 7182 | . 41 . . 190 134 . 578 432 100 256 . 836 1186 186 232 520 2314 177 Core Remaining (%) 58 | 100 . 19 64 . . 78 . . . . 87 . . . . 56 6 . Volleys Fired 865 | 12 58 62 80 48 76 23 79 15 4 20 12 74 109 19 23 52 99 . Largest 2 | 2 2 2 2 2 2 2 2 1 1 1 1 1 2 1 1 1 2 . Hottest 312 | 60 130 160 130 130 145 120 188 212 90 260 212 312 285 248 248 260 242 . Shots Fired 1195 | 24 114 98 141 94 151 37 103 15 4 20 12 74 112 17 23 52 104 . Gun 401 | 24 114 47 130 4 21 37 24 . . . . . . . . . . . Cannon 667 | . . 33 . 90 130 . 77 15 4 3 12 71 75 15 23 41 78 . Launcher 48 | . . 4 3 . . . 2 . . 1 . 3 2 . . 10 23 . Special 79 | . . 14 8 . . . . . . 16 . . 35 2 . 1 3 . Kinetic 285 | 12 49 8 1 . . . 24 . . 3 12 12 17 15 23 41 68 . Thermal 779 | 12 65 86 138 90 151 37 70 11 4 1 . 50 45 . . 9 10 . Explosive 37 | . . 4 2 . . . 2 . . . . 3 2 . . 1 23 . Electromagnetic 30 | . . . . 4 . . 7 4 . . . 2 13 . . . . . Entropic 7 | . . . . . . . . . . . . 7 . . . . . . Robot Hit Streak 18 | 4 15 13 18 16 13 10 16 6 . 12 13 12 15 5 6 16 12 . Robot Miss Streak 6 | 2 4 3 6 3 5 2 5 . . 1 1 3 4 2 3 4 4 . Penetration Max 1 | . . . . . . . . . . . . . 1 1 1 1 . . Secondary Targets 5 | . 2 . 3 . . . . . . . . . . . . . . . Max Gunslinging Chain 1 | . 1 . 1 . . . . . . . . . . . . . . . Shots Hit Robots 734 | 12 75 37 117 36 109 27 65 3 . 15 2 39 79 11 14 28 65 . Core Hits 551 | 4 38 19 159 17 58 11 62 1 . . 2 22 28 6 6 47 71 . Critical Kills 4 | . . . . . . . 1 . . . . . 1 . 1 1 . . Critical Parts Destroyed 7 | . . . . . . 1 . . . . . 1 1 2 1 1 . . Critical Strikes 21 | . . 2 1 . . 3 1 . . . 1 1 2 2 2 3 3 . Burn 5 | . . 2 1 . . 2 . . . . . . . . . . . . Meltdown 1 | . . . . . . . 1 . . . . . . . . . . . Destroy 11 | . . . . . . . . . . . 1 1 2 2 2 3 . . Smash 1 | . . . . . . 1 . . . . . . . . . . . . Sunder 3 | . . . . . . . . . . . . . . . . . 3 . Melee Attacks 31 | . . . 1 . 1 5 . . . 1 . . . . . . 23 . Impact 6 | . . . . . . 5 . . . 1 . . . . . . . . Slashing . | . . . . . . . . . . . . . . . . . . . Piercing . | . . . . . . . . . . . . . . . . . . . Entropic 23 | . . . . . . . . . . . . . . . . . 23 . Sneak Attacks 3 | . . . 1 . 1 1 . . . . . . . . . . . . Combat Hostiles . | . . . . . . . . . . . . . . . . . . . Follow-up Attacks . | . . . . . . . . . . . . . . . . . . . Damage Inflicted 38422 | 143 950 853 2062 1003 2907 653 3030 175 . . 199 2484 5522 1297 1627 6016 9501 . Guns 4715 | 143 949 498 1654 73 358 573 467 . . . . . . . . . . . Cannons 21899 | . . 171 . 930 2519 . 1605 108 . . 153 1936 4447 1218 1627 4080 3105 . Explosions 10230 | . . 184 389 . . . 958 67 . . 46 548 1075 79 . 1936 4948 . Melee 1527 | . . . . . . 80 . . . . . . . . . . 1447 . Ramming 51 | . 1 . 19 . 30 . . . . . . . . . . . 1 . Kinetic 12710 | 63 408 70 46 . . . 467 . . . 153 205 1389 1218 1627 4080 2984 . Thermal 15209 | 80 541 599 1654 930 2877 573 1972 67 . . 46 1236 2860 79 . 1431 264 . Explosive 7120 | . . 184 276 . . . 414 . . . . 316 620 . . 505 4805 . Electromagnetic 1393 | . . . 67 73 . . 177 108 . . . 315 653 . . . . . Impact 80 | . . . . . . 80 . . . . . . . . . . . . Slashing . | . . . . . . . . . . . . . . . . . . . Piercing . | . . . . . . . . . . . . . . . . . . . Entropic 1859 | . . . . . . . . . . . . 412 . . . . 1447 . Highest Corruption 18 | . 1 1 . . . . 3 3 3 3 . 13 18 18 18 17 7 . Average Corruption 4 | . 1 1 . . . . 1 3 3 3 . 6 16 18 13 6 5 . Corruption Purged 19 | . . . . . . . 1 . . . . . . . 18 . . . Corruption Blocked . | . . . . . . . . . . . . . . . . . . . Effects 252 | . 3 46 . . . . 2 6 4 . . 30 80 17 8 4 52 . Message Errors 55 | . 2 7 . . . . . 2 . . . 4 23 2 2 2 11 . Matter Fused 58 | . . 11 . . . . 1 2 . . . 7 13 4 3 1 16 . Heat Flow Errors 31 | . 1 6 . . . . . 1 2 . . 5 8 1 1 1 5 . Energy Discharges 30 | . . 7 . . . . . 1 1 . . 3 8 3 1 . 6 . Parts Rejected 4 | . . . . . . . . . . . . . 3 . . . 1 . Parts Fused 2 | . . . . . . . 1 . . . . . . . . . 1 . Data Loss (minor) 26 | . . 3 . . . . . . 1 . . 2 9 4 . . 7 . Data Loss (major) 23 | . . 5 . . . . . . . . . 5 9 1 . . 3 . Misfires 9 | . . 5 . . . . . . . . . 2 1 . . . 1 . Alerts 6 | . . 2 . . . . . . . . . . 2 . 1 . 1 . Weapon Failures 8 | . . . . . . . . . . . . 2 4 2 . . . . Overload Shots 6 | . . . . . 1 5 . . . . . . . . . . . . Overflow Damage 3086 | . . . . . 18 80 43 . . . 11 361 573 123 265 673 939 . Projectiles 2188 | . . . . . 18 . 40 . . . 11 325 499 123 265 617 290 . Explosions 494 | . . . . . . . 3 . . . . 36 74 . . 56 325 . Melee 404 | . . . . . . 80 . . . . . . . . . . 324 . Knockbacks 51 | . . . 1 . . 1 . . . . 2 . 7 4 4 16 16 . Impact 2 | . . . 1 . . 1 . . . . . . . . . . . . Kinetic 48 | . . . . . . . . . . . 2 . 7 4 4 15 16 . Secondary 1 | . . . . . . . . . . . . . . . . 1 . . Self-Inflicted Damage 1009 | . . 37 . . . . 268 44 . . . 180 . . . . 480 . Shots 18 | . . 1 . . . . 3 1 . . . 4 . . . . 9 . Rammed 5 | . 1 . . . 2 . . . . . . . . . . 1 1 . Targets Rammed 9 | . 1 . 3 . 3 . . . . . . . . . . 1 1 . Kicked 2 | . . . 2 . . . . . . . . . . . . . . . Crushed 2 | . . . 1 . 1 . . . . . . . . . . . . . Highest Temperature 508 | . 294 174 381 150 114 . 222 270 274 324 316 328 362 232 390 508 449 . Average Temperature 94 | . 90 48 90 38 32 . 65 82 88 130 124 125 104 117 127 237 131 . Received Heat Transfer 3163 | . 156 75 747 147 603 . 252 . 18 . . 18 230 . 18 454 445 . Effects 6 | . . . 1 . . . . . . . . 1 1 . . 1 2 . Energy Bleed 3 | . . . 1 . . . . . . . . 1 1 . . . . . Interference 2 | . . . . . . . . . . . . . . . . . 2 . Damage (minor) 1 | . . . . . . . . . . . . . . . . 1 . . Siege Activations 4 | . . . . . . . . . . . . . . . . 3 1 . Total Turns 46 | . . . . . . . . . . . . . . . . 23 23 . Longest Duration 23 | . . . . . . . . . . . . . . . . 15 23 . Martial Activations . | . . . . . . . . . . . . . . . . . . . Shielding Activations . | . . . . . . . . . . . . . . . . . . . Robots Disrupted . | . . . . . . . . . . . . . . . . . . . Combat Hostiles . | . . . . . . . . . . . . . . . . . . . Robots Corrupted 3 | . . . . . . . 1 . . . . . 2 . . . . . Combat Hostiles 3 | . . . . . . . 1 . . . . . 2 . . . . . Parts Fried 13 | . . . . . . . . . . . . . 13 . . . . . Impact Corruptions 1 | . . . . . . 1 . . . . . . . . . . . . Robots Melted 4 | . . . 1 . 1 . 1 . . . . . . . . 1 . . Combat Hostiles 4 | . . . 1 . 1 . 1 . . . . . . . . 1 . . Parts Melted 35 | . 3 . 2 3 12 2 6 . . . . 3 1 . . 3 . . Heat Transferred 17914 | 175 1293 1211 2465 1221 4064 1188 2192 50 . . 50 1086 670 50 . 2099 100 . Parts Sabotaged . | . . . . . . . . . . . . . . . . . . . Parts Stolen . | . . . . . . . . . . . . . . . . . . . Parts Stripped . | . . . . . . . . . . . . . . . . . . . Power Chain Reactions 13 | . . . 1 . . . 3 1 . . 1 1 1 1 . 2 2 . Alert | -11 -10 -10 -8 -7 -7 -7 -5 -5 -5 -5 -4 -4 -4 -4 -4 -4 -3 -2 ------- Run | Yrd Mat Sub Mat Fac Sto Rec Fac Upp Upp War Pro Fac Ext Cet Arc Hub Res Res Maximum Alert Level 4 | . . . 2 . 1 . 2 . . . . 1 3 2 2 3 4 2 Low Security (%) 62 | 100 100 . 80 100 76 100 14 . . . . 67 24 . . 18 . . Level 1 13 | . . . 12 . 23 . 48 . . . . 32 35 . 46 5 6 . Level 2 14 | . . . 7 . . . 37 . . . . . 13 100 53 18 46 100 Level 3 6 | . . . . . . . . . . . . . 25 . . 57 24 . Level 4 2 | . . . . . . . . . . . . . . . . . 22 . Level 5 . | . . . . . . . . . . . . . . . . . . . High Security . | . . . . . . . . . . . . . . . . . . . Max Security . | . . . . . . . . . . . . . . . . . . . Peak Influence 1199 | 10 182 . 437 191 362 80 480 . . . . 226 881 680 481 1062 1199 610 Initial 610 | . . . 10 191 37 80 250 . . . . . 103 457 252 106 535 610 Average 231 | 2 51 . 109 34 149 3 350 . . . . 147 393 567 397 687 737 589 Influence Increases 9863 | 15 505 120 816 376 1026 251 1038 30 15 . 5 651 1452 405 314 1351 1493 . Destroy 0b10 Robot/C 4500 | . 320 100 500 160 560 80 340 . . . . 200 660 160 80 580 760 . Destroy 0b10 Robot/NC 435 | 15 40 . 55 10 40 25 65 . . . 5 25 65 10 30 35 15 . Destroy Leader 986 | . 78 20 110 72 220 . 80 . . . . 56 76 . . 134 140 . Allied During Kill 1017 | . . . . . 109 4 . . . . . . 343 168 110 283 . . Successful Hack 318 | . 22 . 51 54 35 32 34 . . . . 15 34 . . 3 38 . Select Force Hacks 170 | . 30 . . . . 90 . . . . . . . . . 50 . . Disable Machine 765 | . . . 60 60 15 . 60 . . . . 210 90 15 60 105 90 . Destroy Structure 1092 | . . . 25 20 32 5 134 . . . . 100 124 52 34 146 420 . Advance Influence 250 | . . . . . . . 250 . . . . . . . . . . . Partial Spotted 15 | . . . . . . . . . . . . 15 . . . . . . Lose Combat Pursuer 315 | . 15 . 15 . 15 15 75 30 15 . . 30 60 . . 15 30 . Influence Decreases 9313 | 15 417 188 415 715 901 458 569 444 55 15 5 439 846 591 642 634 1428 536 Entered New Map 2665 | . . 43 10 230 45 127 . 174 11 15 . . 109 361 380 198 486 476 Time Decay 5469 | 15 417 145 385 410 576 267 559 270 44 . 5 409 577 190 262 206 682 50 Lost Part 470 | . . . 20 . 30 . 10 . . . . 30 20 . . 90 260 10 Lost Ally 470 | . . . . . 100 50 . . . . . . 140 40 . 140 . . Purge Threat 239 | . . . . 75 150 14 . . . . . . . . . . . . Squads Dispatched 73 | . 5 . 8 7 10 . 12 . . . . 5 5 . . 11 7 3 Investigation 16 | . 2 . 2 1 . . 2 . . . . . . . . 5 3 1 Extermination 14 | . . . . 3 3 . 3 . . . . 4 . . . 1 . . Reinforcement 28 | . 3 . 3 3 4 . 3 . . . . 1 3 . . 2 4 2 Assault 2 | . . . . . . . . . . . . . 2 . . . . . Garrison 13 | . . . 3 . 3 . 4 . . . . . . . . 3 . . Intercept . | . . . . . . . . . . . . . . . . . . . Searches Triggered . | . . . . . . . . . . . . . . . . . . . Construction Impeded 4 | . . . . . . . 1 . . . . . 2 . . 1 . . Haulers Reinforced 2 | . . . . . 1 . . . . . . . . . . . 1 . Active Scanning Responses . | . . . . . . . . . . . . . . . . . . . Cargo Convoy Interrupts . | . . . . . . . . . . . . . . . . . . . Stealth | -11 -10 -10 -8 -7 -7 -7 -5 -5 -5 -5 -4 -4 -4 -4 -4 -4 -3 -2 --------- Run | Yrd Mat Sub Mat Fac Sto Rec Fac Upp Upp War Pro Fac Ext Cet Arc Hub Res Res Distress Signals 30 | . 2 . 3 . 2 1 5 . . . . 1 3 2 . 4 7 . Communications Jammed 17 | . . . 1 . . . . . . . . . . . . 16 . . Distress Signals 17 | . . . 1 . . . . . . . . . . . . 16 . . Times Spotted 360 | . 28 11 34 11 34 4 35 1 3 1 . 15 44 10 14 41 73 1 Peak Tracking Total 15 | . 7 2 4 2 5 2 8 2 3 2 . 4 9 5 2 11 15 2 Tactical Retreats 21 | . 1 . 1 . 1 1 5 2 1 . . 1 4 . . 1 3 . Traps | -11 -10 -10 -8 -7 -7 -7 -5 -5 -5 -5 -4 -4 -4 -4 -4 -4 -3 -2 ------- Run | Yrd Mat Sub Mat Fac Sto Rec Fac Upp Upp War Pro Fac Ext Cet Arc Hub Res Res Traps Triggered 12 | . 1 3 2 . . . . . . . . 1 1 . . . 4 . Indirectly . | . . . . . . . . . . . . . . . . . . . Trap Hack Attempts 79 | . . . . . 79 . . . . . . . . . . . . . Triggered . | . . . . . . . . . . . . . . . . . . . Disarmed 1 | . . . . . 1 . . . . . . . . . . . . . Reprogrammed 9 | . . . . . 9 . . . . . . . . . . . . . Reused . | . . . . . . . . . . . . . . . . . . . Traps Extracted 6 | . . . . . 6 . . . . . . . . . . . . . Installed . | . . . . . . . . . . . . . . . . . . . Triggered . | . . . . . . . . . . . . . . . . . . . Most Traps Carried 6 | . . . . . 6 6 . . . . . . . . . . . . Machines | -11 -10 -10 -8 -7 -7 -7 -5 -5 -5 -5 -4 -4 -4 -4 -4 -4 -3 -2 ---------- Run | Yrd Mat Sub Mat Fac Sto Rec Fac Upp Upp War Pro Fac Ext Cet Arc Hub Res Res Machines Disabled 58 | . . 1 4 4 1 . 4 1 . 1 3 14 7 1 4 7 6 . Max in Single Turn 4 | . . 1 3 1 1 . 2 1 . 1 3 4 1 1 1 1 1 . Garrison Access 2 | . . . . . . . . . . . . . . . . . 2 . Network Hub 1 | . . . . . . . . . . . . . . . . 1 . . Machines Repaired . | . . . . . . . . . . . . . . . . . . . Machines Dismantled 6 | . . . . . . . . . . . . . 5 1 . . . . Machines Sabotaged 1 | . . . . . . . . . . . . . . . . 1 . . Overloaded Fab Kills . | . . . . . . . . . . . . . . . . . . . Hacking | -11 -10 -10 -8 -7 -7 -7 -5 -5 -5 -5 -4 -4 -4 -4 -4 -4 -3 -2 --------- Run | Yrd Mat Sub Mat Fac Sto Rec Fac Upp Upp War Pro Fac Ext Cet Arc Hub Res Res Machines Accessed 105 | . 8 2 9 11 15 13 7 2 1 5 . 13 9 . . 5 5 . Terminals 58 | . 6 . 8 2 11 5 4 . . . . 7 8 . . 5 2 . Fabricators 6 | . . . . 3 . . 1 . . . . 2 . . . . . . Repair Stations 5 | . 1 . . 2 1 . . . . . . . . . . . 1 . Recycling Units 20 | . 1 . 1 2 2 6 1 . . . . 4 1 . . . 2 . Scanalyzers 2 | . . . . 2 . . . . . . . . . . . . . . Garrison Access 2 | . . . . . 1 . 1 . . . . . . . . . . . Total Hacks 299 | . 25 6 28 30 30 60 21 2 1 10 . 37 18 . . 15 16 . Successful 159 | . 16 6 14 19 15 42 6 2 1 10 . 13 7 . . 5 3 . Failed 139 | . 8 . 14 11 15 18 15 . . . . 24 11 . . 10 13 . Catastrophic 31 | . 2 . 2 2 6 4 2 . . . . 3 3 . . 2 5 . Database Lockouts 1 | . 1 . . . . . . . . . . . . . . . . . Manual 108 | . 14 . 17 5 11 14 6 . . . . 18 6 1 . 13 3 . Terminals 168 | . 19 . 27 7 21 16 13 . . . . 27 17 . . 15 6 . Fabricators 11 | . . . . 5 . . 3 . . . . 3 . . . . . . Repair Stations 17 | . 2 . . 6 3 . . . . . . . . . . . 6 . Recycling Units 45 | . 4 . 1 3 4 18 3 . . . . 7 1 . . . 4 . Scanalyzers 9 | . . . . 9 . . . . . . . . . . . . . . Garrison Access 4 | . . . . . 2 . 2 . . . . . . . . . . . Terminal Hacks 89 | . 6 6 6 3 9 30 2 2 1 10 . 8 4 . . 1 1 . Record 38 | . . 5 . . . 24 . 1 . 8 . . . . . . . . Part Schematic 1 | . . . . . . 1 . . . . . . . . . . . . Robot Analysis 5 | . 1 . 2 . . 1 . . . . . 1 . . . . . . Prototype ID Bank 6 | . 1 . . . . 1 . . . . . 3 1 . . . . . Open Door 10 | . . . . . 4 . . 1 1 2 . . 2 . . . . . Branch Access Points 4 | . . . 1 1 . . 1 . . . . 1 . . . . . . Terminal Index 5 | . 1 . . 1 . . 1 . . . . 1 . . . . 1 . Alert Level 4 | . . . 1 . 1 . . . . . . 1 1 . . . . . Unreport Threat 3 | . . . . 1 1 1 . . . . . . . . . . . . Locate Traps 4 | . . . . . 2 . . . . . . 1 . . . 1 . . Hauler Manifests 1 | . . . 1 . . . . . . . . . . . . . . . Zone Layout 5 | . 3 . 1 . 1 . . . . . . . . . . . . . Proto ID Catalog 1 | . . 1 . . . . . . . . . . . . . . . . Release Object 2 | . . . . . . 2 . . . . . . . . . . . . Fabricator Hacks 3 | . . . . 1 . . 1 . . . . 1 . . . . . . Network Status 3 | . . . . 1 . . 1 . . . . 1 . . . . . . Repair Station Hacks 10 | . 2 . . 5 2 . . . . . . . . . . . 1 . Scan Component 6 | . 1 . . 3 1 . . . . . . . . . . . 1 . Repair 4 | . 1 . . 2 1 . . . . . . . . . . . . . Recycling Unit Hacks 10 | . . . 1 . 1 3 1 . . . . 3 1 . . . . . Retrieve Components 10 | . . . 1 . 1 3 1 . . . . 3 1 . . . . . Scanalyzer 7 | . . . . 7 . . . . . . . . . . . . . . Insert Component 3 | . . . . 3 . . . . . . . . . . . . . . Analyze 4 | . . . . 4 . . . . . . . . . . . . . . Garrison Access Hacks . | . . . . . . . . . . . . . . . . . . . Unauthorized Hacks 40 | . 8 . 7 3 3 9 2 . . . . 1 2 . . 4 1 . Terminals 34 | . 7 . 7 3 3 5 1 . . . . 1 2 . . 4 1 . Track 3 | . . . . 1 1 . . . . . . . . . . 1 . . Botnet 13 | . 1 . 2 2 2 1 1 . . . . 1 2 . . . 1 . Operators 1 | . 1 . . . . . . . . . . . . . . . . . Skim 14 | . 5 . 5 . . 4 . . . . . . . . . . . . Sabotage 3 | . . . . . . . . . . . . . . . . 3 . . Fabricators . | . . . . . . . . . . . . . . . . . . . Repair Stations . | . . . . . . . . . . . . . . . . . . . Recycling Units 6 | . 1 . . . . 4 1 . . . . . . . . . . . Mask 2 | . . . . . . 1 1 . . . . . . . . . . . Tunnel 4 | . 1 . . . . 3 . . . . . . . . . . . . Scanalyzers . | . . . . . . . . . . . . . . . . . . . Garrison Access . | . . . . . . . . . . . . . . . . . . . Data Cores Recovered 2 | . . . . . . . . . . . . . 2 . . . . . Used 1 | . . . . . . . . . . . . . 1 . . . . . Hacking Detections 82 | . 7 . 8 9 14 10 6 . . . . 13 6 . . 4 5 . Full Trace Events 8 | . . . 1 1 . 2 2 . . . . . . . . 2 . . Feedback Events . | . . . . . . . . . . . . . . . . . . . Feedback Blocked . | . . . . . . . . . . . . . . . . . . . Robot Schematics Acquired . | . . . . . . . . . . . . . . . . . . . Robots Built . | . . . . . . . . . . . . . . . . . . . Authchips . | . . . . . . . . . . . . . . . . . . . Time . | . . . . . . . . . . . . . . . . . . . Total Robot Build Rating . | . . . . . . . . . . . . . . . . . . . Part Schematics Acquired 4 | . . . . 3 . 1 . . . . . . . . . . . . Parts Built . | . . . . . . . . . . . . . . . . . . . Authchips . | . . . . . . . . . . . . . . . . . . . Time . | . . . . . . . . . . . . . . . . . . . Total Part Build Rating . | . . . . . . . . . . . . . . . . . . . Parts Repaired 4 | . 1 . . 2 1 . . . . . . . . . . . . . Time 112 | . 26 . . 64 22 . . . . . . . . . . . . . Parts Recycled . | . . . . . . . . . . . . . . . . . . . Recycled Matter . | . . . . . . . . . . . . . . . . . . . Retrieved Matter . | . . . . . . . . . . . . . . . . . . . Retrieved Components 51 | . . . 9 . 10 20 1 . . . . 9 2 . . . . . Parts Scanalyzed 3 | . . . . 3 . . . . . . . . . . . . . . Part Schematics Acquired 3 | . . . . 3 . . . . . . . . . . . . . . Parts Damaged . | . . . . . . . . . . . . . . . . . . . Bothacking | -11 -10 -10 -8 -7 -7 -7 -5 -5 -5 -5 -4 -4 -4 -4 -4 -4 -3 -2 ------------ Run | Yrd Mat Sub Mat Fac Sto Rec Fac Upp Upp War Pro Fac Ext Cet Arc Hub Res Res Used RIF Installer . | . . . . . . . . . . . . . . . . . . . Robots Hacked 16 | . . . 1 . . . . . . 5 . . 5 1 . 1 3 . Non-combat 2 | . . . 1 . . . . . . . . . 1 . . . . . Combat 14 | . . . . . . . . . . 5 . . 4 1 . 1 3 . Robot Hacks Applied 18 | . . . 1 . . . . . . 5 . . 6 2 . 1 3 . parse_system 18 | . . . 1 . . . . . . 5 . . 6 2 . 1 3 . Relay Couplers Released 6 | . . . . . . . . . . . . 3 . . . . 3 . Machine Destruction 3 | . . . . . . . . . . . . . . . . . 3 . Programmers 3 | . . . . . . . . . . . . 3 . . . . . . Fabnet Peak Effective % . | . . . . . . . . . . . . . . . . . . . Robots Rewired 18 | . . . . . . . . . . 5 . . 13 . . . . . Allies Hacked . | . . . . . . . . . . . . . . . . . . . Hacks Repelled . | . . . . . . . . . . . . . . . . . . . Allies | -11 -10 -10 -8 -7 -7 -7 -5 -5 -5 -5 -4 -4 -4 -4 -4 -4 -3 -2 -------- Run | Yrd Mat Sub Mat Fac Sto Rec Fac Upp Upp War Pro Fac Ext Cet Arc Hub Res Res Total Allies 42 | . . . . . 10 . . . . 5 . . 22 5 . . . . Largest Group 13 | . . . . . 10 4 . . . 5 . . 10 13 13 11 . . Highest-Rated Group 923 | . . . . . 173 64 . . . 267 . . 529 923 923 657 . . Highest-Rated Ally 159 | . . . . . 29 16 . . . 64 . . 159 159 159 96 . . Total Orders . | . . . . . . . . . . . . . . . . . . . Ally Attacks 350 | . . . . . 66 22 . . . . . . 112 29 25 96 . . Total Damage 9138 | . . . . . 790 255 . . . . . . 4198 872 670 2353 . . Kills 60 | . . . . . 9 2 . . . . . . 24 5 3 17 . . Allies Corrupted 2 | . . . . . 1 . . . . . . . . . . 1 . . Allies Melted 1 | . . . . . . . . . . . . . 1 . . . . . Intel | -11 -10 -10 -8 -7 -7 -7 -5 -5 -5 -5 -4 -4 -4 -4 -4 -4 -3 -2 ------- Run | Yrd Mat Sub Mat Fac Sto Rec Fac Upp Upp War Pro Fac Ext Cet Arc Hub Res Res Active Infowar (turns) 27985 | 12 2212 6968 2196 1977 1862 4203 1635 581 396 692 521 1078 802 . 1 259 2490 100 Sensors 7283 | . . . . 145 . . 1521 581 396 692 521 1035 769 . 1 258 1364 . Structural 9398 | . . 548 1735 1976 348 . 499 574 396 546 521 891 . . . . 1364 . Seismic 19618 | 12 2212 6420 2024 1730 1791 4203 . . . . . . . . . . 1126 100 T.N.C. 3853 | . . . . . . . 901 581 396 692 521 762 . . . . . . Triangulation 560 | . . . . . . . 560 . . . . . . . . . . . Cloaking 18 | . . . . . . . . . . 18 . . . . . . . . Jamming 1305 | . . . 28 . 69 . 103 . . 98 . 603 183 . . 77 144 . ECM 604 | . . . . . . . . . . . . 9 . . . . 595 . Robot Analysis Total 5 | . 1 . 2 . . 1 . . . . . 1 . . . . . . Derelict Logs Recovered 6 | . . 3 . . . . . 1 1 . 1 . . . . . . . Drone Launches . | . . . . . . . . . . . . . . . . . . . Drone Recoveries . | . . . . . . . . . . . . . . . . . . . Exploration | -11 -10 -10 -8 -7 -7 -7 -5 -5 -5 -5 -4 -4 -4 -4 -4 -4 -3 -2 ------------- Run | Yrd Mat Sub Mat Fac Sto Rec Fac Upp Upp War Pro Fac Ext Cet Arc Hub Res Res Turns Passed 30786 | 88 2335 6994 2247 1977 2054 4203 1646 581 396 692 521 1078 1762 392 578 424 2718 100 Spaces Moved 14890 | 40 790 2070 797 952 827 1448 1339 715 493 828 647 1005 1006 285 214 176 1189 69 Core 1 | . . . . . . . . . . . . . . . . . 1 . Treads 7829 | . 778 2070 361 952 827 1127 . . . . . . 525 267 214 176 532 . Legs 2886 | 40 12 . 436 . . . . . . 228 647 1005 87 18 . . 413 . Wheels 119 | . . . . . . 119 . . . . . . . . . . . . Hover 4055 | . . . . . . 202 1339 715 493 600 . . 394 . . . 243 69 Flight . | . . . . . . . . . . . . . . . . . . . Fastest Speed 67 | 120 120 320 195 157 157 110 73 73 73 73 73 73 91 81 81 157 67 127 Average Speed 168 | 120 263 320 225 178 186 210 90 73 73 73 73 73 123 83 137 157 187 127 Slowest Speed 750 | 120 320 320 750 240 243 280 110 73 73 73 73 91 165 120 157 251 400 127 Overloaded Moves . | . . . . . . . . . . . . . . . . . . . Propulsion Burnouts . | . . . . . . . . . . . . . . . . . . . Robots Hopped . | . . . . . . . . . . . . . . . . . . . Potential Cave-ins . | . . . . . . . . . . . . . . . . . . . Cave-ins Triggered . | . . . . . . . . . . . . . . . . . . . Exploration Rate (%) 61 | 5 99 92 62 29 93 99 30 83 64 94 75 29 91 71 81 27 48 3 Regions Visited 18 Branch Regions 11 Pre-discovered Areas 7 | . 1 1 . . . 3 . . . 1 1 . . . . . . . Known Exits Taken 12 | . . . . 1 1 . 1 1 1 1 1 1 1 1 1 1 . . Unknown Exits Taken 6 | 1 1 1 1 . . 1 . . . . . . . . . . 1 . Scrap Searched 9 | . . 4 . . . . . 3 . . 2 . . . . . . . Spaces Dug 253 | . . 16 18 13 5 5 26 10 4 3 18 30 32 . . 6 67 . Terrain Destroyed 731 | . . 25 26 20 26 5 76 16 4 3 19 59 88 23 13 64 264 . Melee 4 | . . . . . . 4 . . . . . . . . . . . . Projectile 259 | . . 10 7 20 26 1 24 10 4 3 11 37 32 8 13 19 34 . AOE 468 | . . 15 19 . . . 52 6 . . 8 22 56 15 . 45 230 . Terrain Rammed . | . . . . . . . . . . . . . . . . . . . Walls Destroyed . | . . . . . . . . . . . . . . . . . . . Machines Disabled . | . . . . . . . . . . . . . . . . . . . Actions | -11 -10 -10 -8 -7 -7 -7 -5 -5 -5 -5 -4 -4 -4 -4 -4 -4 -3 -2 --------- Run | Yrd Mat Sub Mat Fac Sto Rec Fac Upp Upp War Pro Fac Ext Cet Arc Hub Res Res Total 19272 | 55 928 2308 1085 1138 1179 2574 1673 758 525 904 682 1266 1393 419 476 269 1558 82 Wait 2416 | 2 39 140 91 60 122 1017 164 17 25 26 23 127 170 83 222 21 67 . Move 14872 | 39 789 2069 795 951 826 1447 1338 714 492 827 646 1004 1005 284 213 175 1189 69 Hop . | . . . . . . . . . . . . . . . . . . . Pick Up 207 | 1 18 9 17 12 7 25 30 2 2 7 . 14 14 9 1 4 31 4 Fast Attach 114 | 1 1 1 18 14 15 1 3 4 . 2 . 3 8 2 7 . 32 2 Attach 63 | . 1 4 10 3 5 2 5 . . 1 . 8 1 1 . 2 18 2 Detach 68 | . 1 1 10 2 5 10 4 . . 2 . 6 . . 2 . 24 1 Swap 226 | . 13 19 32 21 22 2 23 1 . 10 1 16 23 1 2 11 29 . Drop 268 | . 7 3 28 27 18 42 27 4 2 8 . 13 19 11 6 3 46 4 Fire 865 | 12 58 62 80 48 76 23 79 15 4 20 12 74 109 19 23 52 99 . Melee 31 | . . . 1 . 1 5 . . . 1 . . . . . . 23 . Ram . | . . . . . . . . . . . . . . . . . . . Kick 2 | . . . 2 . . . . . . . . . . . . . . . Crush 6 | . 1 . 1 . 3 . . . . . . . . . . 1 . . Escape Stasis . | . . . . . . . . . . . . . . . . . . . Rewire 5 | . . . . . . . . 1 . . . . 4 . . . . . Trap 79 | . . . . . 79 . . . . . . . . . . . . . Miscellaneous 50 | . . . . . . . . . . . . 1 40 9 . . . . Route ------- -11/Scrapyard -10/Materials (discovered 6 exits: *Mat x3 / [*Min x2] / *Sub) -10/Subcaves (discovered 3 exits: *Mat x2 / Rec) -8/Materials (discovered 2 exits: *Fac x2) -7/Factory (discovered 6 exits: [*Fac x2] / *Sto x2 / Low x2) -7/Storage (discovered 2 exits: [*Fac] / *Rec) -7/Recycling -5/Factory (discovered 2 exits: *Upp x2) -5/Upper Caves -5/Upper Caves -5/Warlord -4/Proximity Caves -4/Factory (discovered 6 exits: *Res / Upp x2 / *Ext x2 / Arm) -4/Extension (discovered 2 exits: *Res / *Cet) -4/Cetus (discovered 2 exits: *Res / *Arc) -4/Archives (discovered 3 exits: *Res / *Hub x2) -4/Hub_04(d) -3/Research (discovered 2 exits: [*Res x2]) -2/Research History --------- Turn | Location | Event 1 | -11/Scrapyard | Discovered new exit (range 3) 89 | -11/Scrapyard | Entered Materials 315 | -10/Materials | Build established: Mutant 407 | -10/Materials | Discovered new exit (range 9) 423 | -10/Materials | Repaired Lgt. Treads 515 | -10/Materials | Discovered new exit (range 11) 701 | -10/Materials | Central database locked down 711 | -10/Materials | Discovered new exit (range 15) 1072 | -10/Materials | Discovered new exit (range 17) 1156 | -10/Materials | Learned 4 Recycling zone layouts 1172 | -10/Materials | Discovered new exit (range 8) 1228 | -10/Materials | Learned 2 Mines zone layouts 1290 | -10/Materials | Learned Storage emergency access door positions 1343 | -10/Materials | Learned Storage trap positions 1385 | -10/Materials | Learned Storage trap positions 1419 | -10/Materials | Identified exit to Materials 1583 | -10/Materials | Learned Storage interactive machine intel 2424 | -10/Materials | Entered Subcaves 2425 | -10/Subcaves | Approached by a straggling Scientist 2425 | -10/Subcaves | Identified exit to Recycling 2724 | -10/Subcaves | Core integrity fell below 50% 3442 | -10/Subcaves | Learned Materials terminal intel 4761 | -10/Subcaves | Discovered new exit (range 6) 4788 | -10/Subcaves | Shifting Twisted Machinery released Sub. Machine Gun 4796 | -10/Subcaves | Shifting Twisted Machinery released Piercing Trap 4866 | -10/Subcaves | A swath of the cavern ceiling suddenly collapsed 5020 | -10/Subcaves | Shifting Twisted Machinery released Sub. Laser 5021 | -10/Subcaves | A swath of the cavern ceiling suddenly collapsed 5047 | -10/Subcaves | Shifting Twisted Machinery released Hvy. Riot Gun 5128 | -10/Subcaves | Visited 4L-MR0's lab 5164 | -10/Subcaves | Found Gun Armor 5741 | -10/Subcaves | Learned Materials terminal intel 8654 | -10/Subcaves | Ambushed by Subdweller buried in earth 8847 | -10/Subcaves | Visited Clippyterm 8856 | -10/Subcaves | Learned Factory fabricator intel 8856 | -10/Subcaves | Learned Factory stockpile data 9331 | -10/Subcaves | Core integrity fell below 20% 9359 | -10/Subcaves | Discovered new exit (range 15) 9418 | -10/Subcaves | Entered Materials 9418 | -8/Materials | Evolved 4 slots: Propulsion x2, Utility x2 9419 | -8/Materials | Loaded intel: 12 terminal locations 9630 | -8/Materials | Lost 4 parts (3n1w) 10182 | -8/Materials | Discovered new exit (range 3) 10614 | -8/Materials | Garrison activated, responded to threat 10918 | -8/Materials | Discovered new exit (range 9) 11403 | -8/Materials | Learned 2 Storage zone layouts 11665 | -8/Materials | Entered Factory 11665 | -7/Factory | Evolved 2 slots: Propulsion x1, Utility x1 11666 | -7/Factory | Identified exit to Storage 11668 | -7/Factory | Loaded intel: 6 fabricator locations 11983 | -7/Factory | Repaired Spk. Treads? 12039 | -7/Factory | Repaired Imp. Treads? 12074 | -7/Factory | Build established: Scavenger-Mutant 12362 | -7/Factory | Discovered new exit (range 14) 12466 | -7/Factory | Build established: Mutant 12541 | -7/Factory | Discovered new exit (range 9) 12819 | -7/Factory | Found Powered Armor 13017 | -7/Factory | Identified exit to Lower Caves 13642 | -7/Factory | Entered Storage 13644 | -7/Storage | Loaded intel: 11 trap records 13646 | -7/Storage | Loaded intel: 20 interactive machine locations 13883 | -7/Storage | Garrison activated, responded to threat 14494 | -7/Storage | Used back door to open Recycling access 14494 | -7/Storage | Discovered exit to Recycling (range 5) 15117 | -7/Storage | Repaired Powered Armor? 15194 | -7/Storage | Assisted by bots powering up and referring to "LRC-V3" 15475 | -7/Storage | Discovered new exit (range 15) 15497 | -7/Storage | Found Prototype Protection 15497 | -7/Storage | Identified Lgt. Regenerative Plating 15526 | -7/Storage | Build established: Commander-Mutant 15696 | -7/Storage | Entered Recycling 15696 | -7/Recycling | Accompanied by 4 allies 16014 | -7/Recycling | Build established: Mutant 17052 | -7/Recycling | Discovered new exit (range 15) 17370 | -7/Recycling | Entered Scraplab 17395 | -7/Recycling | Found Prototype Device 17395 | -7/Recycling | Identified Scrap Engine 19351 | -7/Recycling | Build established: Construct 19899 | -7/Recycling | Entered Factory 19899 | -5/Factory | Evolved 4 slots: Power x1, Utility x2, Weapon x1 20283 | -5/Factory | Garrison activated, responded to threat 21018 | -5/Factory | Garrison activated, responded to threat 21200 | -5/Factory | Found Prototype Processor 21504 | -5/Factory | Identified exit to Upper Caves 21545 | -5/Factory | Entered Upper Caves 21686 | -5/Upper Caves | Found Alien Artifact 21686 | -5/Upper Caves | Identified Dimensional Node Initializer 21686 | -5/Upper Caves | Initialized slip node 21750 | -5/Upper Caves | Learned Factory stockpile data 22018 | -5/Upper Caves | Discovered new exit (range 15) 22032 | -5/Upper Caves | Identified exit to Upper Caves 22126 | -5/Upper Caves | Entered another Upper Caves area 22132 | -5/Upper Caves | Learned Factory trap positions 22499 | -5/Upper Caves | Attracted the attention of an 0b10 checkpoint 22501 | -5/Upper Caves | Discovered new exit (range 8) 22504 | -5/Upper Caves | Identified exit to Warlord 22522 | -5/Upper Caves | Entered Warlord 22556 | -5/Warlord | System corruption cleaned by Quarantine Array 22577 | -5/Warlord | Discovered new exit (range 8) 22693 | -5/Warlord | Received a Watcher feed algorithm from an ecstatic Tinkerer 22729 | -5/Warlord | Learned 4 Armory zone layouts 22729 | -5/Warlord | Learned 4 Command zone layouts 22729 | -5/Warlord | Learned 4 Command zone layouts 22729 | -5/Warlord | Learned Factory recycling unit intel 22729 | -5/Warlord | Learned Armory terminal intel 22729 | -5/Warlord | Learned Research terminal intel 22729 | -5/Warlord | Learned Research garrison access intel 22893 | -5/Warlord | Warlord's base attacked by MAIN.C 23032 | -5/Warlord | Met Warlord 23092 | -5/Warlord | Found Prototype Piercing Weapon 23094 | -5/Warlord | Found Prototype Piercing Weapon 23096 | -5/Warlord | Identified Exp. Signal Interpreter 23100 | -5/Warlord | Found Prototype Energy Gun 23102 | -5/Warlord | Found Prototype Energy Gun 23183 | -5/Warlord | Opened side exit 23197 | -5/Warlord | Spotted Striker 23207 | -5/Warlord | Identified exit to Proximity Caves 23214 | -5/Warlord | Entered Proximity Caves 23403 | -4/Proximity Caves | Acquired the password to a Derelict Tinkerer's latest research 23613 | -4/Proximity Caves | Discovered new exit (range 13) 23734 | -4/Proximity Caves | Identified exit to Factory 23735 | -4/Proximity Caves | Entered Factory 23735 | -4/Factory | Evolved 2 slots: Utility x1, Weapon x1 23736 | -4/Factory | Loaded intel: 107 trap records 23736 | -4/Factory | Identified Vortex Lance (x2) 23737 | -4/Factory | Identified Vortex Rail (x2) 23738 | -4/Factory | Loaded intel: 8 recycling unit locations 23967 | -4/Factory | Identified exit to Upper Caves 23967 | -4/Factory | Identified exit to Extension 23967 | -4/Factory | Identified exit to Armory 23994 | -4/Factory | Found Quantum Capacitor 24032 | -4/Factory | Build established: Infiltrator-Construct 24376 | -4/Factory | Spotted B-86 Titan 24481 | -4/Factory | Build established: Construct 24509 | -4/Factory | Discovered new exit (range 15) 24589 | -4/Factory | Found Prototype Launcher 24589 | -4/Factory | Identified Com. Tesla Bomb Launcher 24650 | -4/Factory | System corruption reached 10% 24813 | -4/Factory | Entered Extension 25199 | -4/Extension | Rescued a captive Derelict 25232 | -4/Extension | Rescued a captive Derelict 25282 | -4/Extension | Rescued a captive Derelict 25302 | -4/Extension | Rescued a captive Derelict 25302 | -4/Extension | Rescued a captive Derelict 25430 | -4/Extension | Spotted B-86 Titan 25463 | -4/Extension | Allies destroyed B-86 Titan 25467 | -4/Extension | Spotted B-86 Titan 25482 | -4/Extension | Destroyed B-86 Titan 25492 | -4/Extension | Lost 4 allies 25739 | -4/Extension | Rescued a captive Derelict 25740 | -4/Extension | Rescued a captive Derelict 25825 | -4/Extension | Rescued A7 26063 | -4/Extension | First assault squad dispatched 26161 | -4/Extension | Lost 6 allies 26321 | -4/Extension | Rescued a captive Derelict 26513 | -4/Extension | Discovered new exit (range 16) 26515 | -4/Extension | Discovered new exit (range 14) 26529 | -4/Extension | Identified exit to Cetus 26552 | -4/Extension | Build established: Commander-Construct 26575 | -4/Extension | Entered Cetus 26575 | -4/Cetus | Accompanied by 10 allies (A7) 26580 | -4/Cetus | Acquired a Cetus Manufacturing Module code from A7 26590 | -4/Cetus | Spotted Cetus Guard 26590 | -4/Cetus | Spotted Cetus Guard 26591 | -4/Cetus | Spotted Cetus Guard 26592 | -4/Cetus | Spotted Cetus Guard 26594 | -4/Cetus | Destroyed Cetus Guard 26594 | -4/Cetus | Allies destroyed Cetus Guard 26600 | -4/Cetus | Destroyed Cetus Guard 26606 | -4/Cetus | Allies destroyed Cetus Guard 26693 | -4/Cetus | Started Cetus Manufacturing Module 26715 | -4/Cetus | Escorted A7 to Cetus Mainframe 26718 | -4/Cetus | Manufactured an Enhanced Grunt 26743 | -4/Cetus | Manufactured an Enhanced Grunt 26768 | -4/Cetus | Manufactured an Enhanced Grunt 26793 | -4/Cetus | Manufactured an Enhanced Grunt 26818 | -4/Cetus | Manufactured an Enhanced Grunt 26825 | -4/Cetus | Discovered new exit (range 16) 26840 | -4/Cetus | Spotted Cetus Guard 26840 | -4/Cetus | Spotted Cetus Guard 26842 | -4/Cetus | Spotted Cetus Guard 26842 | -4/Cetus | Spotted Cetus Guard 26843 | -4/Cetus | Destroyed Cetus Guard 26853 | -4/Cetus | Allies destroyed Cetus Guard 26855 | -4/Cetus | Destroyed Cetus Guard 26860 | -4/Cetus | Allies destroyed Cetus Guard 26865 | -4/Cetus | Discovered new exit (range 15) 26870 | -4/Cetus | Met Revision 17 26941 | -4/Cetus | Identified exit to Archives 26967 | -4/Cetus | Entered Archives 26967 | -4/Archives | Accompanied by 13 allies (A7) 26972 | -4/Archives | Received a hacking code to weaken MAIN.C 27060 | -4/Archives | Discovered new exit (range 16) 27195 | -4/Archives | Discovered new exit (range 16) 27337 | -4/Archives | Discovered new exit (range 15) 27523 | -4/Archives | Identified exit to Hub_04(d) 27545 | -4/Archives | Entered Hub_04(d) 27545 | -4/Hub_04(d) | Accompanied by 11 allies 27597 | -4/Hub_04(d) | Discovered new exit (range 10) 27724 | -4/Hub_04(d) | Lost 10 allies 27724 | -4/Hub_04(d) | Garrison activated, responded to threat 27751 | -4/Hub_04(d) | Destroyed 9 combat bots 27843 | -4/Hub_04(d) | Network Hub disabled 27881 | -4/Hub_04(d) | Spotted Lightning 27883 | -4/Hub_04(d) | Spotted Lightning 27885 | -4/Hub_04(d) | Spotted Lightning 27940 | -4/Hub_04(d) | Identified exit to Research 27969 | -4/Hub_04(d) | Entered Research 27969 | -3/Research | Evolved 2 slots: Utility x1, Weapon x1 27970 | -3/Research | Loaded intel: 21 terminal locations 27971 | -3/Research | Loaded intel: 3 garrison access locations 28000 | -3/Research | Lost 5 parts (3n1u1w) 28172 | -3/Research | Revision forces began assault on 0b10 28174 | -3/Research | Met up with Revision 17++ 28355 | -3/Research | Build established: Tank 28672 | -3/Research | Research terminal network offline 29274 | -3/Research | Spotted Striker 29285 | -3/Research | Spotted Executioner 29296 | -3/Research | Destroyed Striker 29298 | -3/Research | Destroyed Executioner 29307 | -3/Research | Lost 3 allies 29321 | -3/Research | Found Prototype Device 29321 | -3/Research | Identified Adv. Kinecellerator 29327 | -3/Research | Lost 3 parts (2u1w) 29329 | -3/Research | Spotted Striker 29344 | -3/Research | Destroyed Striker 29484 | -3/Research | Spotted Striker 29493 | -3/Research | Spotted Striker 29506 | -3/Research | Spotted Striker 29506 | -3/Research | Destroyed Striker 29516 | -3/Research | Destroyed Striker 29533 | -3/Research | Destroyed Striker 29565 | -3/Research | Destroyed 8 combat bots 29583 | -3/Research | Lost 3 parts (1p1n1w) 29612 | -3/Research | Spotted Striker 29813 | -3/Research | Spotted Executioner 29822 | -3/Research | Spotted Striker 29822 | -3/Research | Spotted Executioner 29823 | -3/Research | Spotted Striker 29835 | -3/Research | Spotted Striker 29858 | -3/Research | Destroyed Striker 29864 | -3/Research | Destroyed Striker 29870 | -3/Research | Destroyed Striker 29891 | -3/Research | Destroyed 7 combat bots 29901 | -3/Research | Lost 3 parts (2u1w) 29932 | -3/Research | Discovered new exit (range 16) 30141 | -3/Research | Found Tactical Quantum Warhead 30216 | -3/Research | Build established: Infiltrator-Mutant 30247 | -3/Research | Found Prototype Launcher 30247 | -3/Research | Identified Adv. Micro-nuke Launcher 30296 | -3/Research | Discovered new exit (range 4) 30418 | -3/Research | Spotted Executioner 30422 | -3/Research | Spotted Striker 30467 | -3/Research | Spotted Striker 30472 | -3/Research | Destroyed Striker 30505 | -3/Research | Core integrity fell below 50% 30575 | -3/Research | Spotted Striker 30575 | -3/Research | Spotted Striker 30585 | -3/Research | Spotted Striker 30585 | -3/Research | Spotted Striker 30621 | -3/Research | Lost 3 allies 30668 | -3/Research | Core integrity fell below 20% 30672 | -3/Research | Spotted Striker 30687 | -3/Research | Entered another Research area 30687 | -2/Research | Warlord forces began assault on 0b10 30687 | -2/Research | Evolved 2 slots: Utility x2 30716 | -2/Research | Lost 12 parts (2p1n6u3w) 30787 | -2/Research | Self-destructed Last Messages --------------- 30732_ ANNOUNCEMENT: Trap arrays successfully disabled. 30760_ Acquired Prototype Flight Unit. 30760_ Identified Imp. Q-thruster. 30763_ Acquired Unknown Device. 30763_ Identified Adv. Point Defense System. 30765_ Dropped Adv. Point Defense System. 30766_ Dropped Component Analysis Suite. 30768_ Acquired Imp. Heavy Treads. 30770_ Dropped Imp. Q-thruster. 30772_ Acquired Imp. Heavy Treads. 30779_ ALERT: Hostiles spotted, dispatching reinforcements to Terminal R010. 30783_ Penetrated by Slug. 30787_ Scrap Engine modifies Hovering Antigrav-Thunder Exoskeleton: Support +8, Penalty +41, +Special Renamed Treaded Siege-Antigrav Exoskeleton. 30787_ Penetrated by Slug. 30787_ Scrap Engine destroyed. Map ----- +----------------------------------------------------+ | ?????????????????????????????????????????????????? | | ?????????????????????????????????????????????????? | | ?????????????????????????????????????????????????? | | ?????????????????????????????????????????????????? | | ?????????????????????????????????????????????????? | | ?????????????????????????????????????????????????? | | ?????????????????????????????????????????????????? | | ?????????????????????????????????????????????????? | | ????????????????????????? ?????????????????????? | | ???????????????????????# ?????????????????????? | | ???????????????????????# h ?????????????????????? | | ???????????????????????# #????????????????????? | | ???????????????????????# #????????????????????? | | ???????????????????????# #????????????????????? | | ???????????????????????# ##############???????? | | ???????????????????????# # #???????? | | ???????????????????????# #= #???????? | | ???????????????????????# # #???????? | | ???????????????????????# # #???????? | | ???????????????????????# # #???????? | | ???????????? ######+### # = #???????? | | ??????????? # ! #???????? | | ??????????? # ! ! #???????? | | ??????????? + ! #???????? | | ??????????? # #???????? | | ??????????????########## @ # #???????? | | ??????????????# # # #???????? | | ??????????????# # #####+######+##??????? | | ??????????????# # #?# #??????? | | ??????????????# # #?# #??????? | | ??????????????# # ### #??????? | | ??????????????# + #??????? | | ??????????????# # ##############? | | ??????????????# # # #? | | ??????????????# # # #? | | ??????????????########## # #? | | ???????????????????##### # #? | | ??????????????????? + !! #? | | ???????????????????##### # ! #? | | ???????????????????????####+### # #? | | ??????????????????????????????# # #? | | ??????????????????????????????# # #? | | ??????????????????????????????###### #? | | ???????????????????????????????????# #? | | ???????????????????????????????????# #? | | ???????????????????????????????????##############? | | ?????????????????????????????????????????????????? | | ?????????????????????????????????????????????????? | | ?????????????????????????????????????????????????? | | ?????????????????????????????????????????????????? | +----------------------------------------------------+ Best States ------------- Heat Dissipation 119 Energy Generation 45 Energy Capacity 893 Matter Stores 450 Matter Capacity 450 Sight Range 16 Robot Scan Range 16 Terrain Scan Density 10 ECM Strength 2 Jamming Range 14 Cloak Strength 2 Additional Mass Support 12 Base Temperature (-) 200 Armor Coverage 775 Resistance: TH 10 Resistance: EM 15 Evasion (%) 69 Targeting Accuracy 8 Recoil Reduction 5 Kinecelleration 50 Trap Extractor Capacity 6 Item Schematics ----------------- Multitool | -7/Factory | Scanalyzed Hcp. Storage Unit | -7/Factory | Scanalyzed Powered Armor | -7/Factory | Scanalyzed Imp. Plasma Cutter | -7/Recycling | Hacked Robot Schematics ------------------ None Fabricated ------------ Nothing Repaired ---------- Lgt. Treads | 70% | -10/Materials Spk. Treads | 33% | -7/Factory Imp. Treads | 63% | -7/Factory Powered Armor | 25% | -7/Storage Alien Tech Used ----------------- Dimensional Node Initializer Achievements -------------- None Challenges ------------ None Game ------ Seed OpticalAnalysisReplica Manual? 0 Play Time 04:12:19 Cumulative 482.7 hours Start 2025.06.23 @ 21:32:50 End 2025.06.24 @ 19:53:59 Sessions 3 Manual Loads 0 Difficulty Rogue Special Mode None Game No. 252 Rogue 189 Adventurer 63 Explorer 0 Win Type - Total 9 Types 8/0/0/1/0/0/0/0/0/0 Lore% 89 Gallery% 81 Achievement% 67 Wizard Run 0 Options --------- Layout 1 ASCII 0 Keyboard 1 Movement Numpad Keybinds 0 Fullscreen 1 Font 24/Terminus Map View 50x35 Zoom Use 0% Tactical HUD 1 Map Filters NONE Filters NONE Steam 1 RUN: c514971b-ec46-4117-8efe-37dab796320e